bitfinex/quotes_BTCUSD_20241205
["timestamp","ask_amount","ask_price","bid_price","bid_amount"]
[1733428022144,0.09967605,99277.0,99276.0,0.00058644]
[1733428022381,0.15,99299.0,99288.0,0.08440761]
[1733428022596,0.15,99299.0,99276.0,0.00158644]
[1733428022597,0.09967605,99289.0,99276.0,0.00158644]
[1733428022856,0.15,99299.0,99276.0,0.00158644]
[1733428022857,0.09967605,99277.0,99276.0,0.00158644]
[1733428023329,0.24967605,99277.0,99276.0,0.00158644]
[1733428023548,0.24967605,99277.0,99230.0,0.27088787]
[1733428023779,0.09967605,99262.0,99244.0,0.08440761]
[1733428024058,0.09967605,99262.0,99250.0,0.27001867]
[1733428024264,0.00058971,99277.0,99268.0,0.08440761]
[1733428024490,0.00058971,99277.0,99234.0,0.050385]
[1733428024491,0.00158971,99277.0,99276.0,0.08440761]
[1733428024700,0.10026576,99277.0,99265.0,0.08440761]
[1733428024911,0.10026576,99277.0,99228.0,0.1]
[1733428024912,0.00058971,99277.0,99276.0,0.08440761]
[1733428025128,0.10026576,99277.0,99269.0,0.08440761]
[1733428025339,0.10026576,99277.0,99267.0,0.27001867]
[1733428025340,0.00058971,99277.0,99276.0,0.08440761]
[1733428025553,0.00058971,99277.0,99267.0,0.27001867]
[1733428025782,0.00058971,99277.0,99275.0,0.08440761]
[1733428026026,0.00058971,99277.0,99276.0,0.18440761]
[1733428026766,0.00058971,99277.0,99276.0,0.18540761]
[1733428027198,0.10026576,99277.0,99276.0,0.001]
[1733428027655,0.201478,99266.0,99265.0,0.003]
[1733428027888,0.30115405,99266.0,99265.0,0.003]
[1733428028112,0.09967605,99266.0,99265.0,0.003]
[1733428029311,0.00058971,99277.0,99276.0,0.13477161]
[1733428029532,0.00058971,99277.0,99276.0,0.23477161]
[1733428029739,0.201327,99341.0,99313.0,0.08440761]
[1733428029970,0.09967605,99340.0,99336.0,0.050334]
[1733428030178,0.09967605,99340.0,99337.0,0.050333]
[1733428030385,3.00422984,99350.0,99349.0,0.18440761]
[1733428030608,3.00422984,99350.0,99349.0,0.08440761]
[1733428030796,3.10390589,99350.0,99337.0,0.08440761]
[1733428031030,0.09967605,99349.0,99341.0,0.08440761]
[1733428031255,3.00422984,99350.0,99349.0,0.08440761]
[1733428031508,3.00422984,99350.0,99349.0,0.23473461]
[1733428031723,3.10390589,99350.0,99349.0,0.23473461]
[1733428031946,3.10390589,99350.0,99349.0,0.149327]
[1733428032178,3.10390589,99350.0,99349.0,0.23373461]
[1733428032420,3.00422984,99350.0,99349.0,0.13473461]
[1733428032651,3.10390589,99350.0,99349.0,0.08440761]
[1733428032868,3.10390589,99350.0,99349.0,0.18340761]
[1733428033099,3.00422984,99350.0,99349.0,0.18340761]
[1733428033862,3.10390589,99350.0,99330.0,0.08440761]
[1733428034091,0.09967605,99344.0,99335.0,0.08440761]
[1733428034304,0.09967605,99344.0,99343.0,0.08440761]
[1733428034525,0.09967605,99344.0,99341.0,0.08440761]
[1733428034738,0.09967605,99343.0,99335.0,0.08440761]
[1733428034961,0.09967605,99340.0,99320.0,0.27001867]
[1733428035178,0.09967605,99337.0,99319.0,0.08440761]
[1733428035382,0.201338,99335.0,99320.0,0.08440761]
[1733428035610,0.09967605,99334.0,99325.0,0.08440761]
[1733428035827,0.09967605,99334.0,99326.0,0.099]
[1733428036053,3.00422984,99350.0,99341.0,0.08440761]
[1733428036260,3.00422984,99350.0,99349.0,0.08440761]
[1733428037126,3.00422984,99350.0,99349.0,0.18340761]
[1733428038427,3.00422984,99350.0,99349.0,0.26140761]
[1733428038903,2.99922984,99350.0,99349.0,0.28736962]
[1733428039112,2.93883684,99350.0,99349.0,0.48704567]
[1733428039331,2.86073684,99350.0,99349.0,0.48704567]
[1733428039556,2.86073684,99350.0,99349.0,0.26140761]
[1733428039792,2.86073684,99350.0,99349.0,0.08440761]
[1733428040038,2.86073684,99350.0,99349.0,0.23373461]
[1733428040255,2.76008184,99350.0,99349.0,0.33341066]
[1733428040468,2.65942684,99350.0,99349.0,0.43341066]
[1733428040692,2.65942684,99350.0,99349.0,0.49681773]
[1733428040918,2.65942684,99350.0,99349.0,0.43341066]
[1733428041352,2.65942684,99350.0,99349.0,0.23373461]
[1733428041822,2.75910289,99350.0,99349.0,0.08440761]
[1733428042668,2.65942684,99350.0,99349.0,0.23373461]
[1733428043309,2.65942684,99350.0,99349.0,0.43341066]
[1733428043544,2.65942684,99350.0,99349.0,0.49681793]
[1733428044392,2.43067184,99350.0,99349.0,0.49681793]
[1733428044634,1.55267184,99350.0,99349.0,0.54651793]
[1733428044849,0.201162,99423.0,99403.0,0.08440761]
[1733428045086,0.0017412,99430.0,99403.0,0.08440761]
[1733428045087,0.09967605,99412.0,99403.0,0.08440761]
[1733428045340,0.09967605,99412.0,99403.0,0.13470661]
[1733428045562,0.09967605,99412.0,99404.0,0.08440761]
[1733428046455,0.09967605,99412.0,99406.0,0.08440761]
[1733428046901,0.001,99403.0,99374.0,0.00031079]
[1733428047133,0.09967605,99375.0,99374.0,0.00031079]
[1733428047586,0.09967605,99375.0,99374.0,0.0847184]
[1733428047831,0.09967605,99375.0,99374.0,0.00031079]
[1733428048073,0.09967605,99375.0,99371.0,0.08440761]
[1733428048316,0.001,99408.0,99371.0,0.08440761]
[1733428048317,0.15,99414.0,99383.0,0.08440761]
[1733428048553,0.15,99414.0,99393.0,0.08440761]
[1733428048554,0.09967605,99404.0,99393.0,0.08440761]
[1733428048799,0.09967605,99404.0,99394.0,0.27001867]
[1733428049036,0.0005896,99415.0,99414.0,0.13470161]
[1733428049330,0.0005896,99415.0,99414.0,0.08440761]
[1733428049569,0.0005896,99415.0,99403.0,0.099]
[1733428049570,0.10026565,99415.0,99403.0,0.099]
[1733428049783,0.09967605,99414.0,99413.0,0.08440761]
[1733428049998,0.0005896,99415.0,99414.0,0.18340761]
[1733428051586,0.0005896,99415.0,99394.0,0.27001867]
[1733428051587,0.10026565,99415.0,99394.0,0.08440761]
[1733428051837,0.09967605,99395.0,99380.0,0.00031079]
[1733428052101,0.09967605,99381.0,99370.0,0.00031079]
[1733428052338,0.15,99409.0,99387.0,0.08440761]
[1733428052585,0.0103547,99464.0,99395.0,0.08440761]
[1733428052586,0.09967605,99399.0,99395.0,0.08440761]
[1733428052805,0.09967605,99399.0,99397.0,0.08440761]
[1733428053031,0.09967605,99399.0,99393.0,0.10061]
[1733428053032,0.201135,99436.0,99422.0,0.08440761]
[1733428053300,0.0796,99441.0,99422.0,0.08440761]
[1733428053301,0.09967605,99429.0,99422.0,0.08440761]
[1733428053542,0.09967605,99429.0,99385.0,0.1]
[1733428053543,0.0005896,99414.0,99391.0,0.08440761]
[1733428053771,0.09967605,99409.0,99395.0,0.08440761]
[1733428054240,0.09967605,99409.0,99403.0,0.08440761]
[1733428054478,0.09967605,99409.0,99408.0,0.08440761]
[1733428054694,0.0005896,99414.0,99412.0,0.08440761]
[1733428054911,0.201191,99408.0,99395.0,0.08440761]
[1733428055142,0.09967605,99407.0,99403.0,0.08440761]
[1733428055572,0.0005896,99414.0,99413.0,0.08440761]
[1733428055822,0.10026565,99414.0,99413.0,0.08440761]
[1733428056101,0.10026565,99414.0,99409.0,0.08440761]
[1733428056289,0.09967605,99413.0,99409.0,0.08440761]
[1733428056507,0.09967605,99413.0,99403.0,0.08440761]
[1733428056745,0.201182,99412.0,99403.0,0.08440761]
[1733428056975,0.09967605,99411.0,99403.0,0.08440761]
[1733428057187,0.09967605,99411.0,99407.0,0.08440761]
[1733428057883,0.0005896,99414.0,99413.0,0.08440761]
[1733428058089,0.0005896,99414.0,99413.0,0.18340761]
[1733428059218,0.0005896,99414.0,99413.0,0.08440761]
[1733428059431,0.0005896,99414.0,99413.0,0.18340761]
[1733428059694,0.0005896,99414.0,99413.0,0.21180767]
[1733428060370,0.0005896,99414.0,99413.0,0.18340761]
[1733428064077,0.0017412,99430.0,99429.0,0.08440761]
[1733428064308,0.001918,99430.0,99429.0,0.08440761]
[1733428064747,0.001918,99430.0,99426.0,0.099]
[1733428064977,0.10159405,99430.0,99429.0,0.08440761]
[1733428065422,0.001918,99430.0,99429.0,0.08440761]
[1733428065897,0.001918,99430.0,99420.0,0.0014104]
[1733428065898,0.10159405,99430.0,99420.0,0.0014104]
[1733428066178,0.201157,99425.0,99420.0,0.0014104]
[1733428066390,0.09967605,99424.0,99420.0,0.0014104]
[1733428067287,0.10067605,99421.0,99420.0,4e-07]
[1733428067537,0.15,99404.0,99387.0,0.00031079]
[1733428067771,0.09967605,99397.0,99387.0,0.00031079]
[1733428067994,0.09967605,99397.0,99388.0,0.08440761]
[1733428068246,0.15,99395.0,99388.0,0.08440761]
[1733428068487,0.09967605,99394.0,99388.0,0.08440761]
[1733428068767,0.0806,99388.0,99357.0,0.00031079]
[1733428068988,0.201281,99364.0,99357.0,0.00031079]
[1733428069206,0.201284,99362.0,99357.0,0.00031079]
[1733428069426,0.09967605,99361.0,99360.0,0.08440761]
[1733428069660,0.15,99380.0,99370.0,0.08440761]
[1733428069883,0.09967605,99379.0,99370.0,0.08440761]
[1733428070357,0.09967605,99379.0,99370.0,0.08499721]
[1733428070562,0.09967605,99379.0,99378.0,0.08440761]
[1733428071014,0.15,99395.0,99391.0,0.08440761]
[1733428071230,0.201221,99393.0,99379.0,0.08440761]
[1733428071443,0.15,99395.0,99376.0,0.099]
[1733428071444,0.201235,99386.0,99376.0,0.099]
[1733428071666,0.15,99395.0,99370.0,0.08499721]
[1733428071667,0.201261,99374.0,99370.0,0.0005896]
[1733428071897,0.201263,99372.0,99370.0,0.0005896]
[1733428072112,0.09137605,99371.0,99370.0,0.0005896]
[1733428072328,0.24137605,99371.0,99370.0,0.0005896]
[1733428072795,0.09137605,99371.0,99370.0,0.0005896]
[1733428074393,0.0798,99409.0,99394.0,0.050304]
[1733428074609,0.09967605,99408.0,99407.0,0.099]
[1733428074826,0.201131,99438.0,99423.0,0.08440761]
[1733428075052,0.09967605,99429.0,99423.0,0.08440761]
[1733428075268,0.09967605,99429.0,99428.0,0.08440761]
[1733428075712,0.09967605,99429.0,99418.0,0.099]
[1733428075713,0.09967605,99429.0,99423.0,0.08440761]
[1733428075950,0.09985285,99429.0,99425.0,0.08440761]
[1733428076174,0.0001768,99429.0,99428.0,0.08440761]
[1733428076418,0.0001768,99429.0,99428.0,0.18340761]
[1733428077509,0.0001768,99429.0,99428.0,0.18245838]
[1733428078019,0.09985285,99429.0,99428.0,0.099]
[1733428078877,0.0001768,99429.0,99428.0,0.18245838]
[1733428080262,0.09985285,99429.0,99428.0,0.099]
[1733428080482,0.0001768,99429.0,99428.0,0.18245838]
[1733428081889,0.0017412,99440.0,99428.0,0.08345838]
[1733428081890,0.0016592,99440.0,99428.0,0.08345838]
[1733428082123,0.0016592,99440.0,99439.0,0.08345838]
[1733428082612,0.0016592,99440.0,99439.0,0.18245838]
[1733428083753,0.0016592,99440.0,99439.0,0.28313996]
[1733428083970,0.0016592,99440.0,99439.0,0.40953154]
[1733428084458,0.001742,99450.0,99449.0,0.149277]
[1733428084690,0.001742,99450.0,99449.0,0.33341691]
[1733428084922,0.001742,99450.0,99449.0,0.43381068]
[1733428085177,0.0017408,99490.0,99489.0,0.18245838]
[1733428085402,6e-05,99535.0,99467.0,0.050267]
[1733428085403,6e-05,99535.0,99518.0,0.08345838]
[1733428085628,0.0016408,99520.0,99519.0,0.18245838]
[1733428086348,8.74e-06,99520.0,99519.0,0.18245838]
[1733428086581,0.00059823,99520.0,99519.0,0.18245838]
[1733428086824,0.10027428,99520.0,99519.0,0.099]
[1733428087053,0.00059823,99520.0,99519.0,0.19235838]
[1733428087502,0.00059823,99520.0,99519.0,0.18245838]
[1733428087738,0.10027428,99520.0,99510.0,0.36901867]
[1733428087975,0.00059823,99520.0,99519.0,0.18245838]
[1733428088197,0.00059823,99520.0,99519.0,0.20070422]
[1733428088463,0.00059823,99520.0,99519.0,0.18245838]
[1733428090051,0.00059823,99520.0,99519.0,0.38313917]
[1733428090270,0.0017408,99530.0,99529.0,0.23269438]
[1733428090773,0.00191752,99530.0,99529.0,0.33237043]
[1733428090995,0.00191752,99530.0,99529.0,0.43237043]
[1733428091212,0.00191752,99530.0,99529.0,0.23269438]
[1733428092844,0.00191752,99530.0,99529.0,0.33237043]
[1733428093556,6e-05,99535.0,99534.0,0.33269238]
[1733428093784,1e-06,99535.0,99534.0,0.53236843]
[1733428094252,0.004014,99594.0,99534.0,0.53236843]
[1733428094253,0.004014,99594.0,99582.0,0.08345838]
[1733428094496,0.01654162,99629.0,99582.0,0.13366738]
[1733428094728,0.004014,99601.0,99582.0,0.08345838]
[1733428094958,0.001,99628.0,99582.0,0.08345838]
[1733428094959,0.01036273,99625.0,99582.0,0.21074632]
[1733428095189,0.040131,99629.0,99582.0,0.18245838]
[1733428095423,0.200733,99635.0,99618.0,0.08345838]
[1733428095650,0.09967605,99634.0,99626.0,0.08345838]
[1733428095879,0.00058901,99635.0,99634.0,0.08345838]
[1733428096134,0.00058901,99635.0,99618.0,0.050191]
[1733428096135,0.10026506,99635.0,99632.0,0.08345838]
[1733428096370,0.09967605,99633.0,99589.0,0.08345838]
[1733428096593,0.09967605,99621.0,99608.0,0.099]
[1733428097313,0.200779,99612.0,99608.0,0.099]
[1733428097541,0.00058901,99635.0,99608.0,0.099]
[1733428097777,0.200801,99602.0,99596.0,0.099]
[1733428098021,0.200801,99602.0,99580.0,0.27001867]
[1733428098022,0.09967605,99601.0,99588.0,0.099]
[1733428098258,0.200819,99593.0,99586.0,0.08345838]
[1733428098533,0.09967605,99593.0,99588.0,0.099]
[1733428098997,0.09967605,99592.0,99588.0,0.099]
[1733428099217,0.09967605,99592.0,99589.0,0.08345838]
[1733428099448,0.09967605,99592.0,99588.0,0.099]
[1733428099449,0.00017659,99593.0,99592.0,0.08345838]
[1733428099679,0.09985264,99593.0,99585.0,0.08345838]
[1733428099926,0.09967605,99592.0,99588.0,0.099]
[1733428100370,0.00017659,99593.0,99592.0,0.08345838]
[1733428100818,0.09967605,99593.0,99587.0,0.099]
[1733428101073,0.350772,99616.0,99582.0,0.02]
[1733428101074,0.200833,99585.0,99582.0,0.02]
[1733428101309,0.200777,99613.0,99592.0,0.18245838]
[1733428101535,0.20074,99632.0,99582.0,0.02]
[1733428101536,0.0473,99632.0,99607.0,0.08345838]
[1733428101774,0.0473,99632.0,99621.0,0.08345838]
[1733428101775,0.09967605,99622.0,99621.0,0.08345838]
[1733428102002,0.0473,99632.0,99612.0,0.050194]
[1733428102003,0.09967605,99631.0,99622.0,0.08345838]
[1733428102465,0.09967605,99631.0,99610.0,0.27001867]
[1733428102466,0.200716,99644.0,99630.0,0.18245838]
[1733428102686,0.09967605,99639.0,99630.0,0.099]
[1733428103151,0.10026459,99639.0,99630.0,0.099]
[1733428103381,0.10026459,99639.0,99630.0,0.18245838]
[1733428103621,0.200726,99638.0,99630.0,0.099]
[1733428103861,0.20073,99636.0,99630.0,0.099]
[1733428104079,0.200734,99634.0,99607.0,0.18245838]
[1733428104302,0.200734,99634.0,99582.0,0.02]
[1733428104303,0.15,99632.0,99612.0,0.08345838]
[1733428104525,0.00058854,99639.0,99621.0,0.099]
[1733428104526,0.09967605,99631.0,99621.0,0.099]
[1733428104752,0.09967605,99631.0,99625.0,0.08345838]
[1733428105319,0.09967605,99631.0,99630.0,0.099]
[1733428105771,0.09967605,99631.0,99616.0,0.08345838]
[1733428105999,0.200742,99630.0,99621.0,0.099]
[1733428106225,0.09967605,99629.0,99621.0,0.099]
[1733428106466,0.09967605,99629.0,99621.0,0.18245838]
[1733428106693,0.09967605,99629.0,99626.0,0.08345838]
[1733428106923,0.09967605,99629.0,99625.0,0.099]
[1733428107151,0.09967605,99629.0,99621.0,0.08345838]
[1733428107377,0.200757,99623.0,99613.0,0.099]
[1733428107601,0.200773,99615.0,99613.0,0.099]
[1733428107827,0.30045005,99614.0,99613.0,0.099]
[1733428108050,0.17550901,99638.0,99613.0,0.099]
[1733428108276,0.200753,99625.0,99613.0,0.099]
[1733428108501,0.200764,99620.0,99613.0,0.099]
[1733428108726,0.09967605,99619.0,99613.0,0.099]
[1733428108992,0.30044105,99619.0,99613.0,0.099]
[1733428109217,0.200774,99615.0,99613.0,0.099]
[1733428109440,0.30045005,99614.0,99613.0,0.099]
[1733428109664,0.15,99638.0,99613.0,0.099]
[1733428109900,0.09967605,99637.0,99625.0,0.099]
[1733428110123,0.09967605,99637.0,99631.0,0.099]
[1733428110593,0.00058854,99639.0,99630.0,0.099]
[1733428110817,0.00058854,99639.0,99631.0,0.099]
[1733428111041,0.00058854,99639.0,99638.0,0.099]
[1733428115648,0.00058854,99639.0,99638.0,0.10000353]
[1733428115880,0.00058854,99639.0,99638.0,0.19967952]
[1733428116131,6e-05,99670.0,99669.0,0.099]
[1733428116355,0.00023648,99670.0,99669.0,0.149166]
[1733428116578,0.00023648,99670.0,99669.0,0.1690994]
[1733428116813,0.00023648,99670.0,99669.0,0.099]
[1733428119020,0.200672,99665.0,99664.0,0.099]
[1733428119493,0.00023648,99670.0,99669.0,0.099]
[1733428119716,0.00023648,99670.0,99669.0,0.149166]
[1733428120372,0.00023648,99670.0,99669.0,0.15016913]
[1733428120630,0.00023648,99670.0,99669.0,0.18521984]
[1733428120860,0.00023648,99670.0,99669.0,0.099]
[1733428121518,0.00023648,99670.0,99669.0,0.18245838]
[1733428123086,0.00023648,99670.0,99669.0,0.099]
[1733428123302,0.00023648,99670.0,99669.0,0.18245838]
[1733428123528,0.00023648,99670.0,99669.0,0.099]
[1733428123752,0.00023648,99670.0,99669.0,0.18245838]
[1733428123965,0.00023648,99670.0,99669.0,0.08345838]
[1733428124159,0.00023648,99670.0,99669.0,0.18245838]
[1733428124451,0.00023648,99670.0,99669.0,0.08345838]
[1733428124873,0.00023648,99670.0,99669.0,0.18245838]
[1733428125305,0.00023648,99670.0,99525.0,0.4]
[1733428125306,0.200664,99669.0,99668.0,0.08345838]
[1733428125520,0.200664,99669.0,99656.0,0.08345838]
[1733428125521,0.200684,99659.0,99656.0,0.08345838]
[1733428125753,0.200684,99659.0,99658.0,0.18245838]
[1733428126211,0.09967605,99668.0,99658.0,0.18245838]
[1733428126431,0.09967605,99668.0,99665.0,0.08345838]
[1733428126658,0.20067,99667.0,99665.0,0.08345838]
[1733428126869,0.30034605,99667.0,99665.0,0.08345838]
[1733428127323,0.200704,99649.0,99648.0,0.099]
[1733428127561,0.200704,99649.0,99635.0,0.099]
[1733428127562,0.20073,99636.0,99635.0,0.099]
[1733428127795,0.30040605,99636.0,99635.0,0.099]
[1733428128014,0.30040605,99636.0,99620.0,0.0008665]
[1733428128015,0.09967605,99636.0,99633.0,0.099]
[1733428128265,0.30040805,99635.0,99634.0,0.099]
[1733428128506,0.200732,99635.0,99634.0,0.099]
[1733428128744,0.401485,99630.0,99629.0,0.18245838]
[1733428128983,0.401485,99630.0,99626.0,0.08345838]
[1733428129218,0.200754,99624.0,99623.0,0.08345838]
[1733428129888,0.200754,99624.0,99623.0,0.18245838]
[1733428130116,0.200746,99628.0,99624.0,0.099]
[1733428130369,0.00017635,99630.0,99629.0,0.08345838]
[1733428130603,0.00017635,99630.0,99629.0,0.18245838]
[1733428132370,0.00017635,99630.0,99629.0,0.08345838]
[1733428132581,0.00017635,99630.0,99629.0,0.18245838]
[1733428133485,0.00017635,99630.0,99629.0,0.20070422]
[1733428133692,0.00017635,99630.0,99629.0,0.18245838]
[1733428134380,0.00017635,99630.0,99629.0,0.08345838]
[1733428134597,0.00017635,99630.0,99629.0,0.18245838]
[1733428134823,0.00017635,99630.0,99629.0,0.08345838]
[1733428135054,0.00017635,99630.0,99629.0,0.18245838]
[1733428135489,0.00017635,99630.0,99629.0,0.20070422]
[1733428135703,0.00017635,99630.0,99629.0,0.18245838]
[1733428136799,0.00017635,99630.0,99629.0,0.18145838]
[1733428138984,0.200706,99649.0,99629.0,0.18145838]
[1733428138985,0.0017328,99640.0,99639.0,0.099]
[1733428139707,0.0017328,99640.0,99639.0,0.18145838]
[1733428139948,0.0017328,99640.0,99639.0,0.19960422]
[1733428140370,0.200737,99633.0,99630.0,0.08245838]
[1733428140591,0.30041305,99633.0,99630.0,0.08245838]
[1733428140849,0.30041305,99633.0,99629.0,0.00058854]
[1733428140850,0.20074,99631.0,99629.0,0.00058854]
[1733428141053,0.09967605,99630.0,99629.0,0.00058854]
[1733428141742,0.0451,99667.0,99639.0,0.18145838]
[1733428141952,0.20069,99656.0,99639.0,0.18145838]
[1733428142163,0.02303513,99668.0,99639.0,0.099]
[1733428142395,0.200724,99639.0,99638.0,0.18145838]
[1733428142594,0.200719,99642.0,99638.0,0.18145838]
[1733428142805,0.200724,99639.0,99638.0,0.18145838]
[1733428143049,0.200724,99639.0,99638.0,0.099]
[1733428143360,0.200724,99639.0,99638.0,0.18145838]
[1733428143465,0.20072,99641.0,99639.0,0.099]
[1733428144127,0.200712,99645.0,99639.0,0.099]
[1733428144351,0.200712,99645.0,99629.0,0.00058854]
[1733428144352,0.200739,99632.0,99629.0,0.00058854]
[1733428144580,0.45041805,99630.0,99620.0,4e-08]
[1733428144789,0.200739,99632.0,99620.0,4e-08]
[1733428144790,0.20076,99621.0,99620.0,4e-08]
[1733428145017,0.30043605,99621.0,99620.0,4e-08]
[1733428145238,0.27543605,99621.0,99620.0,4e-08]
[1733428147015,0.29852564,99621.0,99620.0,4e-08]
[1733428147263,0.44852564,99621.0,99620.0,4e-08]
[1733428147937,0.44852564,99621.0,99600.0,0.0008664]
[1733428147938,0.200801,99601.0,99600.0,0.0008664]
[1733428148179,0.30047705,99601.0,99600.0,0.0008664]
[1733428148841,0.30147705,99601.0,99600.0,0.0008664]
[1733428149071,0.45047705,99601.0,99600.0,0.0008664]
[1733428149279,0.45047705,99601.0,99600.0,0.00104275]
[1733428150171,0.09967605,99601.0,99600.0,0.00104275]
[1733428150391,0.063,99635.0,99620.0,0.099]
[1733428150613,0.063,99635.0,99600.0,0.00964286]
[1733428150614,0.200736,99633.0,99611.0,0.08245838]
[1733428150865,0.200736,99633.0,99600.0,0.00964286]
[1733428150866,0.200784,99610.0,99607.0,0.08245838]
[1733428151129,0.200784,99610.0,99600.0,0.10004275]
[1733428151130,0.200792,99606.0,99603.0,0.099]
[1733428151342,0.063,99635.0,99616.0,0.08245838]
[1733428151558,0.401507,99625.0,99621.0,0.08245838]
[1733428151770,0.200756,99623.0,99621.0,0.08245838]
[1733428151986,0.09967605,99624.0,99621.0,0.08245838]
[1733428152199,0.30043105,99624.0,99621.0,0.08245838]
[1733428152448,0.063,99635.0,99629.0,0.08245838]
[1733428152666,0.200742,99630.0,99629.0,0.08245838]
[1733428153773,0.09967605,99634.0,99630.0,0.08245838]
[1733428154010,0.200736,99633.0,99630.0,0.08245838]
[1733428154244,0.30041205,99633.0,99630.0,0.08245838]
[1733428154935,0.09967605,99632.0,99620.0,0.0008663]
[1733428155224,0.200757,99623.0,99620.0,0.0008663]
[1733428155430,0.20076,99621.0,99620.0,0.0008663]
[1733428155645,0.30043605,99621.0,99620.0,0.0008663]
[1733428158568,0.09967605,99621.0,99610.0,0.099]
[1733428158789,0.200777,99613.0,99612.0,0.16732468]
[1733428159933,0.200738,99632.0,99631.0,0.06832468]
[1733428160628,0.00058807,99633.0,99631.0,0.06832468]
[1733428160845,0.00058807,99633.0,99632.0,0.16732468]
[1733428161080,0.00058807,99633.0,99632.0,0.21750868]
[1733428162217,0.00058807,99633.0,99632.0,0.16732468]
[1733428163569,0.00058807,99633.0,99632.0,0.06832468]
[1733428163781,0.00058807,99633.0,99632.0,0.16732468]
[1733428167613,0.20132407,99633.0,99632.0,0.16732468]
[1733428167848,0.00058807,99633.0,99632.0,0.16732468]
[1733428168081,0.00058807,99633.0,99632.0,0.099]
[1733428168297,0.00058807,99633.0,99632.0,0.16732468]
[1733428168724,0.20074,99631.0,99623.0,0.099]
[1733428168944,0.09967605,99630.0,99629.0,0.099]
[1733428169175,0.30041805,99630.0,99629.0,0.099]
[1733428169390,0.50116105,99630.0,99629.0,0.099]
[1733428169603,0.200754,99624.0,99619.0,0.06832468]
[1733428169815,0.200759,99622.0,99621.0,0.099]
[1733428170041,0.30043505,99622.0,99621.0,0.099]
[1733428170538,0.50119405,99622.0,99619.0,0.06832468]
[1733428170762,0.200762,99620.0,99619.0,0.06832468]
[1733428171211,0.200762,99620.0,99619.0,0.16732468]
[1733428171658,0.200762,99620.0,99619.0,0.06832468]
[1733428171913,0.200762,99620.0,99619.0,0.16732468]
[1733428172353,0.200762,99620.0,99619.0,0.06832468]
[1733428172577,0.200762,99620.0,99619.0,0.16732468]
[1733428172809,0.200762,99620.0,99619.0,0.06832468]
[1733428173035,0.200762,99620.0,99619.0,0.16732468]
[1733428173484,0.200762,99620.0,99619.0,0.06832468]
[1733428173713,0.401549,99614.0,99610.0,0.0008665]
[1733428173957,0.200801,99601.0,99599.0,0.0025]
[1733428174187,0.30047705,99601.0,99599.0,0.0025]
[1733428175376,0.30047705,99601.0,99580.0,0.0008682]
[1733428175377,0.200841,99581.0,99580.0,0.0008682]
[1733428175644,0.30051705,99581.0,99580.0,0.00104455]
[1733428176322,0.24967605,99581.0,99547.0,0.06832468]
[1733428176564,0.09967605,99564.0,99535.0,0.099]
[1733428176792,0.0467,99579.0,99512.0,0.0775]
[1733428176793,0.09967605,99555.0,99541.0,0.099]
[1733428177043,0.09967605,99555.0,99543.0,0.06832468]
[1733428177264,0.200879,99563.0,99559.0,0.099]
[1733428177487,0.200881,99561.0,99559.0,0.099]
[1733428177707,0.09967605,99560.0,99544.0,0.099]
[1733428177936,0.200914,99545.0,99544.0,0.099]
[1733428178189,0.09967605,99560.0,99544.0,0.16732468]
[1733428178412,0.0477,99579.0,99544.0,0.099]
[1733428178413,0.09967605,99545.0,99544.0,0.099]
[1733428178635,0.200916,99544.0,99540.0,0.06832468]
[1733428178865,0.200916,99544.0,99449.0,0.09864539]
[1733428178866,0.09967605,99541.0,99491.0,0.050255]
[1733428179093,0.09967605,99534.0,99485.0,0.00100494]
[1733428179324,0.09967605,99534.0,99520.0,0.00104352]
[1733428179556,0.1,99575.0,99520.0,0.00104352]
[1733428179780,0.200898,99553.0,99521.0,0.00100478]
[1733428180000,0.09967605,99556.0,99523.0,0.050239]
[1733428180001,0.09967605,99552.0,99523.0,0.050239]
[1733428180229,0.09967605,99552.0,99541.0,0.05023]
[1733428180468,0.30082,99592.0,99542.0,0.00100454]
[1733428180469,0.022934,99574.0,99542.0,0.00100454]
[1733428180714,0.5346,99622.0,99542.0,0.00100454]
[1733428180715,0.09967605,99573.0,99543.0,0.00100443]
[1733428180939,0.0775,99600.0,99529.0,0.0822]
[1733428180940,0.09967605,99572.0,99529.0,0.0822]
[1733428181182,0.09967605,99565.0,99520.0,0.00104352]
[1733428181407,0.09967605,99555.0,99520.0,0.00104352]
[1733428181639,0.200943,99531.0,99520.0,0.00104352]
[1733428181853,0.09967605,99552.0,99520.0,0.00104352]
[1733428182390,0.0775,99559.0,99520.0,0.00104352]
[1733428182391,0.09967605,99544.0,99520.0,0.00104352]
[1733428182612,0.200958,99523.0,99520.0,0.00104352]
[1733428183061,0.30063405,99523.0,99520.0,0.00104352]
[1733428183285,0.50159205,99523.0,99520.0,0.00104352]
[1733428183526,0.30063405,99523.0,99520.0,0.00104352]
[1733428183993,0.30063405,99523.0,99500.0,0.000868]
[1733428183994,0.201003,99501.0,99500.0,0.000868]
[1733428184219,0.09967605,99501.0,99500.0,0.000868]
[1733428184447,0.00017613,99523.0,99500.0,0.000868]
[1733428184680,0.200965,99520.0,99500.0,0.000868]
[1733428184910,0.09967605,99519.0,99500.0,0.000868]
[1733428185140,0.30064405,99519.0,99500.0,0.000868]
[1733428185373,0.200996,99505.0,99500.0,0.000868]
[1733428185602,0.201003,99501.0,99500.0,0.000868]
[1733428185870,0.30067905,99501.0,99500.0,0.000868]
[1733428188170,0.1,99526.0,99500.0,0.000868]
[1733428188171,0.200999,99503.0,99500.0,0.000868]
[1733428188424,0.200983,99511.0,99500.0,0.000868]
[1733428188641,0.200992,99506.0,99500.0,0.000868]
[1733428188873,0.09967605,99505.0,99500.0,0.000868]
[1733428189087,0.200981,99512.0,99500.0,0.000868]
[1733428189326,0.200972,99516.0,99500.0,0.000868]
[1733428189546,0.200976,99514.0,99501.0,0.05025]
[1733428189826,0.30065205,99514.0,99500.0,0.051118]
[1733428190077,0.04017,99534.0,99521.0,0.05024]
[1733428190307,0.02043948,99562.0,99522.0,0.00100466]
[1733428190551,0.200899,99553.0,99521.0,0.05024]
[1733428190786,0.200949,99528.0,99513.0,0.100488]
[1733428191040,0.140156,99569.0,99504.0,0.050249]
[1733428191041,0.200957,99524.0,99504.0,0.00100473]
[1733428191287,0.200943,99531.0,99505.0,0.050248]
[1733428191533,0.20096,99522.0,99505.0,0.100496]
[1733428192011,0.20096,99522.0,99506.0,0.050248]
[1733428192220,0.200955,99525.0,99510.0,0.050245]